fUSD/lending_fUSD_20240630
["ID","MTS","AMOUNT","RATE_DAILY","PERIOD"]
[330687740,1719711053347,-500.0,0.00013808,3]
[330687741,1719711053357,-990.19,0.00013808,3]
[330687742,1719711053366,-527.87,0.00013808,3]
[330687743,1719711053375,-500.0,0.00013808,3]
[330687744,1719711053384,-555.08,0.00013808,3]
[330687745,1719711053394,-500.0,0.00013808,3]
[330687746,1719711053403,-2932.06,0.00013808,3]
[330687747,1719711053413,-500.0,0.00013808,3]
[330687748,1719711053424,-674.79,0.00013808,3]
[330687749,1719711053435,-1092.71,0.00013808,3]
[330687750,1719711053445,-1430.53,0.00013808,3]
[330687751,1719711053456,-500.0,0.00013808,3]
[330687752,1719711053466,-866.85,0.00013808,3]
[330687753,1719711053478,-525.85050137,0.00013808,3]
[330687754,1719711053487,-500.0,0.00013808,3]
[330687755,1719711053497,-726.78,0.00013808,3]
[330687756,1719711053506,-500.0,0.00013808,3]
[330687757,1719711053515,-525.73966667,0.00013808,3]
[330687758,1719711053524,-668.37,0.00013808,3]
[330687759,1719711053534,-500.0,0.00013808,3]
[330687760,1719711053544,-500.0,0.00013808,3]
[330687761,1719711053553,-804.46,0.00013808,3]
[330687762,1719711053562,-962.38,0.00013808,3]
[330687763,1719711053571,-500.0,0.00013808,3]
[330687764,1719711053581,-623.27,0.00013808,3]
[330687765,1719711053593,-500.0,0.00013808,3]
[330687766,1719711053603,-1151.96,0.00013808,3]
[330687767,1719711053613,-1231.81,0.00013808,3]
[330687768,1719711053623,-572.24,0.00013808,3]
[330687769,1719711053632,-500.0,0.00013808,3]
[330687770,1719711053642,-500.0,0.00013808,3]
[330687771,1719711053652,-500.0,0.00013808,3]
[330687772,1719711053662,-500.0,0.00013808,3]
[330687773,1719711053670,-789.18,0.00013808,3]
[330687774,1719711053681,-500.0,0.00013808,3]
[330687775,1719711053691,-500.0,0.00013808,3]
[330687776,1719711053700,-1003.38,0.00013808,3]
[330687777,1719711053709,-2872.85,0.00013808,3]
[330687778,1719711053718,-996.71,0.00013808,3]
[330687779,1719711053727,-500.0,0.00013808,3]
[330687780,1719711053737,-177.41657254,0.00013817,2]
[330687781,1719711053746,-151.0,0.00013827,2]
[330687782,1719711053756,-151.0,0.00013827,2]
[330687783,1719711053766,-151.0,0.00013827,2]
[330687784,1719711053775,-151.0,0.00013827,2]
[330687785,1719711053784,-119174.0786832,0.00013827,2]
[330687786,1719711053793,-1000.0,0.00013862,2]
[330687787,1719711053803,-283.50525412,0.00013899,2]
[330687788,1719711053812,-151.0,0.000139,2]
[330687789,1719711053822,-151.0,0.000139,2]
[330687790,1719711053831,-1200.0,0.000139,5]
[330687791,1719711053842,-2816.917,0.00013907,2]
[330687792,1719711053851,-547.0,0.00013907,2]
[330687793,1719711053861,-5173.0,0.00013907,2]
[330687794,1719711053870,-5822.051,0.00013907,2]
[330687795,1719711053880,-291.087,0.00013907,2]
[330687796,1719711053891,-1666.829,0.00013907,2]
[330687797,1719711053901,-10573.449,0.00013907,2]
[330687798,1719711053911,-447.962,0.00013907,2]
[330687799,1719711053921,-813.0,0.00013907,2]
[330687800,1719711053931,-166.953,0.00013907,2]
[330687801,1719711053940,-1072.383,0.00013907,2]
[330687802,1719711053950,-151.0,0.00013907,2]
[330687803,1719711053960,-226.73,0.00013914,2]
[330687804,1719711053969,-150.0,0.00013914,2]
[330687805,1719711053979,-1246.57,0.00013917,3]
[330687806,1719711053989,-2620.27,0.00013917,3]
[330687807,1719711053999,-771.15,0.00013917,3]
[330687808,1719711054009,-2420.64,0.00013917,3]
[330687809,1719711054019,-1036.09,0.00013917,3]
[330687810,1719711054029,-2486.42,0.00013917,3]
[330687811,1719711054039,-1825.95,0.00013917,3]
[330687812,1719711054049,-500.0,0.00013917,3]
[330687813,1719711054059,-500.0,0.00013917,3]
[330687814,1719711054069,-500.0,0.00013917,3]
[330687815,1719711054079,-500.0,0.00013917,3]
[330687816,1719711054089,-3712.27,0.00013917,3]
[330687817,1719711054098,-500.0,0.00013917,3]
[330687818,1719711054108,-500.0,0.00013917,3]
[330687819,1719711054117,-500.0,0.00013917,3]
[330687820,1719711054127,-500.0,0.00013917,3]
[330687821,1719711054136,-500.0,0.00013917,3]
[330687822,1719711054145,-500.0,0.00013917,3]
[330687823,1719711054155,-3931.77,0.00013917,3]
[330687824,1719711054164,-500.0,0.00013917,3]
[330687825,1719711054174,-500.0,0.00013917,3]
[330687826,1719711054183,-500.0,0.00013917,3]
[330687827,1719711054193,-500.0,0.00013917,3]
[330687828,1719711054202,-2737.34,0.00013917,3]
[330687829,1719711054212,-500.0,0.00013917,3]
[330687830,1719711054221,-1116.78,0.00013917,3]
[330687831,1719711054230,-500.0,0.00013917,3]
[330687832,1719711054240,-500.0,0.00013917,3]
[330687833,1719711054250,-500.0,0.00013917,3]
[330687834,1719711054259,-500.0,0.00013917,3]
[330687835,1719711054269,-500.0,0.00013917,3]
[330687836,1719711054278,-500.0,0.00013917,3]
[330687837,1719711054287,-2164.74,0.00013917,3]
[330687838,1719711054296,-500.0,0.00013917,3]
[330687839,1719711054305,-500.0,0.00013917,3]
[330687840,1719711054315,-500.0,0.00013917,3]
[330687841,1719711054325,-500.0,0.00013917,3]
[330687842,1719711054334,-500.0,0.00013917,3]
[330687843,1719711054344,-500.0,0.00013917,3]
[330687844,1719711054354,-1569.95,0.00013917,3]
[330687845,1719711054364,-500.0,0.00013917,3]
[330687846,1719711054373,-500.0,0.00013917,3]
[330687847,1719711054382,-500.0,0.00013917,3]
[330687848,1719711054392,-4687.88,0.00013917,3]
[330687849,1719711054401,-500.0,0.00013917,3]
[330687850,1719711054410,-500.0,0.00013917,3]
[330687851,1719711054420,-500.0,0.00013917,3]
[330687852,1719711054429,-500.0,0.00013917,3]
[330687853,1719711054439,-500.0,0.00013917,3]
[330687854,1719711054448,-684.17,0.00013917,3]
[330687855,1719711054458,-500.0,0.00013917,3]
[330687856,1719711054467,-500.0,0.00013917,3]
[330687857,1719711054477,-500.0,0.00013917,3]
[330687858,1719711054487,-713.16,0.00013917,3]
[330687859,1719711054496,-223.42206914,0.00013917,3]
[330687860,1719711054506,-500.0,0.00013917,3]
[330687861,1719711054515,-500.0,0.00013917,3]
[330687862,1719711054525,-500.0,0.00013917,3]
[330687863,1719711054535,-500.0,0.00013917,3]
[330687864,1719711054544,-500.0,0.00013917,3]
[330687865,1719711054554,-500.0,0.00013917,3]
[330687866,1719711054564,-1295.72,0.00013917,3]
[330687867,1719711054574,-500.0,0.00013917,3]
[330687868,1719711054583,-500.0,0.00013917,3]
[330687869,1719711054596,-500.0,0.00013917,3]
[330687870,1719711054605,-500.0,0.00013917,3]
[330687871,1719711054615,-1900.6,0.00013917,3]
[330687872,1719711054624,-500.0,0.00013917,3]
[330687873,1719711054634,-151.0,0.00013917,2]
[330687874,1719711054950,-151.0,0.00013917,2]
[330687875,1719711054964,-151.0,0.00013917,2]
[330687876,1719711054974,-180.27849676,0.00013917,3]
[330687877,1719711054984,-500.0,0.00013917,3]
[330687878,1719711054995,-710.78,0.00013917,3]
[330687879,1719711055004,-500.0,0.00013917,3]
[330687880,1719711055014,-500.0,0.00013917,3]
[330687881,1719711055024,-500.0,0.00013917,3]
[330687882,1719711055033,-500.0,0.00013917,3]
[330687883,1719711055043,-500.0,0.00013917,3]
[330687884,1719711055053,-1699.63,0.00013917,3]
[330687885,1719711055063,-500.0,0.00013917,3]
[330687886,1719711055073,-500.0,0.00013917,3]
[330687887,1719711055082,-500.0,0.00013917,3]
[330687888,1719711055092,-601.07,0.00013917,3]
[330687889,1719711055102,-500.0,0.00013917,3]
[330687890,1719711055111,-1066.9,0.00013917,3]
[330687891,1719711055121,-500.0,0.00013917,3]
[330687892,1719711055131,-500.0,0.00013917,3]
[330687893,1719711055143,-500.0,0.00013917,3]
[330687894,1719711055152,-832.37,0.00013917,3]
[330687895,1719711055163,-500.0,0.00013917,3]
[330687896,1719711055174,-500.0,0.00013917,3]
[330687897,1719711055183,-500.0,0.00013917,3]
[330687898,1719711055193,-1071.66,0.00013917,3]
[330687899,1719711055203,-340.47278285,0.00013917,3]
[330687900,1719711055212,-500.0,0.00013917,3]
[330687901,1719711055222,-500.0,0.00013917,3]
[330687902,1719711055231,-500.0,0.00013917,3]
[330687903,1719711055241,-500.0,0.00013917,3]
[330687904,1719711055251,-716.2,0.00013917,3]
[330687905,1719711055260,-533.26,0.00013917,3]
[330687906,1719711055270,-761.79,0.00013917,3]
[330687907,1719711055280,-519.14,0.00013917,3]
[330687908,1719711055289,-471.08515914,0.00013917,3]
[330687909,1719711055299,-500.0,0.00013917,3]
[330687910,1719711055308,-500.0,0.00013917,3]
[330687911,1719711055318,-911.02,0.00013917,3]
[330687912,1719711055328,-500.0,0.00013917,3]
[330687913,1719711055337,-663.53,0.00013917,3]
[330687914,1719711055346,-500.0,0.00013917,3]
[330687915,1719711055356,-500.98,0.00013917,3]
[330687916,1719711055365,-1050.04,0.00013917,3]
[330687917,1719711055375,-755.44,0.00013917,3]
[330687918,1719711055384,-1768.33,0.00013917,3]
[330687919,1719711055396,-500.0,0.00013917,3]
[330687920,1719711055405,-627.64,0.00013917,3]
[330687921,1719711055415,-500.0,0.00013917,3]
[330687922,1719711055428,-500.0,0.00013917,3]
[330687923,1719711055437,-500.0,0.00013917,3]
[330687924,1719711055447,-500.0,0.00013917,3]
[330687925,1719711055457,-500.0,0.00013917,3]
[330687926,1719711055467,-500.0,0.00013917,3]
[330687927,1719711055476,-500.0,0.00013917,3]
[330687928,1719711055486,-500.0,0.00013917,3]
[330687929,1719711055495,-644.01,0.00013917,3]
[330687930,1719711055504,-500.0,0.00013917,3]
[330687931,1719711055514,-859.12,0.00013917,3]
[330687932,1719711055524,-889.76,0.00013917,3]
[330687933,1719711055534,-500.0,0.00013917,3]
[330687934,1719711055543,-500.0,0.00013917,3]
[330687935,1719711055553,-500.0,0.00013917,3]
[330687936,1719711055562,-534.75,0.00013917,3]
[330687937,1719711055572,-500.0,0.00013917,3]
[330687938,1719711055581,-500.0,0.00013917,3]
[330687939,1719711055594,-500.0,0.00013917,3]
[330687940,1719711055603,-500.0,0.00013917,3]
[330687941,1719711055613,-1138.76,0.00013917,3]
[330687942,1719711055622,-651.9,0.00013917,3]
[330687943,1719711055631,-500.0,0.00013917,3]
[330687944,1719711055641,-500.0,0.00013917,3]
[330687945,1719711055651,-578.29,0.00013917,3]
[330687946,1719711055661,-649.15,0.00013917,3]
[330687947,1719711055671,-721.45,0.00013917,3]
[330687948,1719711055681,-617.2,0.00013917,3]
[330687949,1719711055691,-408.57944615,0.00013917,3]
[330687950,1719711055700,-500.0,0.00013917,3]
[330687951,1719711055710,-500.0,0.00013917,3]
[330687952,1719711055719,-595.24,0.00013917,3]
[330687953,1719711055729,-500.0,0.00013917,3]
[330687954,1719711055739,-500.0,0.00013917,3]
[330687955,1719711055749,-500.0,0.00013917,3]
[330687956,1719711055758,-551.62,0.00013917,3]
[330687957,1719711055768,-500.0,0.00013917,3]
[330687958,1719711055777,-500.0,0.00013917,3]
[330687959,1719711055786,-500.0,0.00013917,3]
[330687960,1719711055796,-500.0,0.00013917,3]
[330687961,1719711055805,-548.68,0.00013917,3]
[330687962,1719711055815,-500.0,0.00013917,3]
[330687963,1719711055825,-780.35,0.00013917,3]
[330687964,1719711055835,-500.0,0.00013917,3]
[330687965,1719711055844,-500.0,0.00013917,3]
[330687966,1719711055853,-500.0,0.00013917,3]
[330687967,1719711055863,-540.99,0.00013917,3]
[330687968,1719711055872,-737.39,0.00013917,3]
[330687969,1719711055882,-500.0,0.00013917,3]
[330687970,1719711055892,-500.0,0.00013917,3]
[330687971,1719711055902,-517.82,0.00013917,3]
[330687972,1719711055912,-500.0,0.00013917,3]
[330687973,1719711055922,-500.0,0.00013917,3]
[330687974,1719711055931,-500.0,0.00013917,3]
[330687975,1719711055940,-500.0,0.00013917,3]
[330687976,1719711055950,-500.0,0.00013917,3]
[330687977,1719711055959,-500.0,0.00013917,3]
[330687978,1719711055968,-605.18,0.00013917,3]
[330687979,1719711055977,-500.0,0.00013917,3]
[330687980,1719711055987,-600.31,0.00013917,3]
[330687981,1719711055996,-880.06,0.00013917,3]
[330687982,1719711056006,-500.0,0.00013917,3]
[330687983,1719711056015,-500.0,0.00013917,3]
[330687984,1719711056025,-772.55,0.00013917,3]
[330687985,1719711056034,-537.38,0.00013917,3]
[330687986,1719711056044,-1133.19,0.00013917,3]
[330687987,1719711056054,-582.47,0.00013917,3]
[330687988,1719711056064,-500.0,0.00013917,3]
[330687989,1719711056075,-862.26,0.00013917,3]
[330687990,1719711056087,-2714.67,0.00013917,3]
[330687991,1719711056097,-510.91,0.00013917,3]
[330687992,1719711056108,-802.38,0.00013917,3]
[330687993,1719711056120,-500.0,0.00013917,3]
[330687994,1719711056129,-500.0,0.00013917,3]
[330687995,1719711056139,-500.0,0.00013917,3]
[330687996,1719711056148,-521.73,0.00013917,3]
[330687997,1719711056157,-500.0,0.00013917,3]
[330687998,1719711056167,-500.0,0.00013917,3]
[330687999,1719711056177,-500.0,0.00013917,3]
[330688000,1719711056186,-2040.84,0.00013917,3]
[330688001,1719711056196,-532.39,0.00013917,3]
[330688002,1719711056205,-500.0,0.00013917,3]
[330688003,1719711056214,-500.0,0.00013917,3]
[330688004,1719711056223,-1265.1,0.00013917,3]
[330688005,1719711056233,-500.0,0.00013917,3]
[330688006,1719711056242,-500.0,0.00013917,3]
[330688007,1719711056252,-500.0,0.00013917,3]
[330688008,1719711056262,-500.0,0.00013917,3]
[330688009,1719711056271,-500.0,0.00013917,3]
[330688010,1719711056281,-952.19,0.00013917,3]
[330688011,1719711056290,-500.0,0.00013917,3]
[330688012,1719711056300,-529.97,0.00013917,3]
[330688013,1719711056309,-588.51,0.00013917,3]
[330688014,1719711056318,-500.0,0.00013917,3]
[330688015,1719711056328,-500.0,0.00013917,3]
[330688016,1719711056337,-691.24,0.00013917,3]
[330688017,1719711056347,-500.0,0.00013917,3]
[330688018,1719711056356,-660.79,0.00013917,3]
[330688019,1719711056366,-500.0,0.00013917,3]
[330688020,1719711056375,-671.71,0.00013917,3]
[330688021,1719711056384,-500.0,0.00013917,3]
[330688022,1719711056395,-500.0,0.00013917,3]
[330688023,1719711056405,-500.0,0.00013917,3]
[330688024,1719711056414,-1531.98,0.00013917,3]
[330688025,1719711056423,-500.0,0.00013917,3]
[330688026,1719711056434,-500.0,0.00013917,3]
[330688027,1719711056443,-500.0,0.00013917,3]
[330688028,1719711056453,-548.68,0.00013917,3]
[330688029,1719711056462,-1034.28,0.00013917,3]
[330688030,1719711056471,-500.0,0.00013917,3]
[330688031,1719711056481,-588.83,0.00013917,3]
[330688032,1719711056490,-500.0,0.00013917,3]
[330688033,1719711056500,-500.0,0.00013917,3]
[330688034,1719711056510,-538.51,0.00013917,3]
[330688035,1719711056519,-500.0,0.00013917,3]
[330688036,1719711056529,-500.0,0.00013917,3]
[330688037,1719711056539,-500.0,0.00013917,3]
[330688038,1719711056548,-527.93,0.00013917,3]
[330688039,1719711056558,-511.23,0.00013917,3]
[330688040,1719711056567,-500.0,0.00013917,3]
[330688041,1719711056576,-500.0,0.00013917,3]
[330688042,1719711056586,-564.75,0.00013917,3]
[330688043,1719711056602,-500.0,0.00013917,3]
[330688044,1719711056611,-599.85,0.00013917,3]
[330688045,1719711056621,-500.0,0.00013917,3]
[330688046,1719711056630,-998.73,0.00013917,3]
[330688047,1719711056639,-879.24,0.00013917,3]
[330688048,1719711056648,-500.0,0.00013917,3]
[330688049,1719711056658,-1046.19,0.00013917,3]
[330688050,1719711056668,-151.0,0.00013917,2]
[330688051,1719711056677,-151.0,0.00013917,2]
[330688052,1719711056687,-1382.68,0.00013917,3]
[330688053,1719711056697,-151.0,0.00013917,2]
[330688054,1719711056706,-500.0,0.00013917,3]
[330688055,1719711056716,-500.0,0.00013917,3]
[330688056,1719711056725,-500.0,0.00013917,3]
[330688057,1719711056735,-500.0,0.00013917,3]
[330688058,1719711056744,-500.0,0.00013917,3]
[330688059,1719711056754,-500.0,0.00013917,3]
[330688060,1719711056764,-151.0,0.00013917,2]
[330688061,1719711056773,-151.0,0.00013917,2]
[330688062,1719711056782,-500.0,0.00013917,3]
[330688063,1719711056792,-151.0,0.00013917,2]
[330688064,1719711056801,-1014.61,0.00013917,3]
[330688065,1719711056811,-500.0,0.00013917,3]
[330688066,1719711056820,-500.0,0.00013917,3]
[330688067,1719711056829,-500.0,0.00013917,3]
[330688068,1719711056839,-500.0,0.00013917,3]
[330688069,1719711056848,-500.0,0.00013917,3]
[330688070,1719711056858,-500.0,0.00013917,3]
[330688071,1719711056868,-500.0,0.00013917,3]
[330688072,1719711056877,-500.0,0.00013917,3]
[330688073,1719711056889,-1918.33,0.00013917,3]
[330688074,1719711056899,-500.0,0.00013917,3]
[330688075,1719711056908,-1152.62,0.00013917,3]
[330688076,1719711056918,-500.0,0.00013917,3]
[330688077,1719711056927,-672.21,0.00013917,3]
[330688078,1719711056937,-500.0,0.00013917,3]
[330688079,1719711056947,-500.0,0.00013917,3]
[330688080,1719711056956,-1012.12,0.00013917,3]
[330688081,1719711056965,-500.0,0.00013917,3]
[330688082,1719711056975,-805.69,0.00013917,3]
[330688083,1719711056984,-728.19,0.00013917,3]
[330688084,1719711056993,-500.75,0.00013917,3]
[330688085,1719711057003,-500.0,0.00013917,3]
[330688086,1719711057013,-1145.72,0.00013917,3]
[330688087,1719711057022,-500.0,0.00013917,3]
[330688088,1719711057032,-636.14,0.00013917,3]
[330688089,1719711057042,-500.0,0.00013917,3]
[330688090,1719711057051,-959.16,0.00013917,3]
[330688091,1719711057061,-500.0,0.00013917,3]
[330688092,1719711057071,-500.0,0.00013917,3]
[330688093,1719711057080,-532.97,0.00013917,3]
[330688094,1719711057089,-726.22,0.00013917,3]
[330688095,1719711057099,-500.0,0.00013917,3]
[330688096,1719711057108,-796.05,0.00013917,3]
[330688097,1719711057118,-500.0,0.00013917,3]
[330688098,1719711057128,-500.0,0.00013917,3]
[330688099,1719711057139,-500.0,0.00013917,3]
[330688100,1719711057148,-500.0,0.00013917,3]
[330688101,1719711057158,-500.0,0.00013917,3]
[330688102,1719711057167,-500.0,0.00013917,3]
[330688103,1719711057176,-500.0,0.00013917,3]
[330688104,1719711057185,-500.0,0.00013917,3]
[330688105,1719711057195,-500.0,0.00013917,3]
[330688106,1719711057204,-1185.2,0.00013917,3]
[330688107,1719711057214,-500.0,0.00013917,3]
[330688108,1719711057223,-500.0,0.00013917,3]
[330688109,1719711057233,-500.0,0.00013917,3]
[330688110,1719711057242,-583.84,0.00013917,3]
[330688111,1719711057251,-500.0,0.00013917,3]
[330688112,1719711057260,-296.18,0.00013917,3]
[330688113,1719711057270,-500.0,0.00013917,3]
[330688114,1719711057280,-500.0,0.00013917,3]
[330688115,1719711057289,-2306.38,0.00013917,3]
[330688116,1719711057365,-500.0,0.00013917,3]
[330688117,1719711057374,-712.33,0.00013917,3]
[330688118,1719711057383,-500.0,0.00013917,3]
[330688119,1719711057395,-500.0,0.00013917,3]
[330688120,1719711057404,-500.0,0.00013917,3]
[330688121,1719711057413,-567.32,0.00013917,3]
[330688122,1719711057422,-1188.2,0.00013917,3]
[330688123,1719711057431,-500.0,0.00013917,3]
[330688124,1719711057441,-500.0,0.00013917,3]
[330688125,1719711057450,-500.0,0.00013917,3]
[330688126,1719711057459,-500.0,0.00013917,3]
[330688127,1719711057468,-506.58934729,0.00013917,3]
[330688128,1719711057477,-500.0,0.00013917,3]
[330688129,1719711057486,-1071.25,0.00013917,3]
[330688130,1719711057495,-708.58,0.00013917,3]
[330688131,1719711057504,-791.93,0.00013917,3]
[330688132,1719711057513,-500.0,0.00013917,3]
[330688133,1719711057523,-549.76,0.00013917,3]
[330688134,1719711057532,-500.0,0.00013917,3]
[330688135,1719711057541,-759.26,0.00013917,3]
[330688136,1719711057550,-538.9,0.00013917,3]
[330688137,1719711057559,-500.0,0.00013917,3]
[330688138,1719711057569,-500.0,0.00013917,3]
[330688139,1719711057578,-500.0,0.00013917,3]
[330688140,1719711057587,-500.0,0.00013917,3]
[330688141,1719711057600,-500.0,0.00013917,3]
[330688142,1719711057610,-500.0,0.00013917,3]
[330688143,1719711057619,-500.0,0.00013917,3]
[330688144,1719711057628,-608.49,0.00013917,3]
[330688145,1719711057639,-660.44,0.00013917,3]
[330688146,1719711057648,-500.0,0.00013917,3]
[330688147,1719711057657,-2629.63,0.00013917,3]
[330688148,1719711057667,-500.0,0.00013917,3]
[330688149,1719711057677,-500.0,0.00013917,3]
[330688150,1719711057687,-1298.08,0.00013917,3]
[330688151,1719711057696,-500.0,0.00013917,3]
[330688152,1719711057706,-721.44,0.00013917,3]
[330688153,1719711057715,-500.0,0.00013917,3]
[330688154,1719711057725,-551.41,0.00013917,3]
[330688155,1719711057734,-945.69,0.00013917,3]
[330688156,1719711057744,-525.15,0.00013917,3]
[330688157,1719711057753,-500.0,0.00013917,3]
[330688158,1719711057763,-1708.5,0.00013917,3]
[330688159,1719711057772,-1393.7,0.00013917,3]
[330688160,1719711057782,-781.98,0.00013917,3]
[330688161,1719711057792,-686.06,0.00013917,3]
[330688162,1719711057802,-500.0,0.00013917,3]
[330688163,1719711057812,-500.0,0.00013917,3]
[330688164,1719711057822,-500.0,0.00013917,3]
[330688165,1719711057832,-574.91,0.00013917,3]
[330688166,1719711057844,-500.0,0.00013917,3]
[330688167,1719711057854,-1608.03,0.00013917,3]
[330688168,1719711057864,-500.0,0.00013917,3]
[330688169,1719711057874,-500.0,0.00013917,3]
[330688170,1719711057883,-500.0,0.00013917,3]
[330688171,1719711057896,-500.0,0.00013917,3]
[330688172,1719711057905,-500.0,0.00013917,3]
[330688173,1719711057915,-500.0,0.00013917,3]
[330688174,1719711057929,-679.33,0.00013917,3]
[330688175,1719711057938,-500.0,0.00013917,3]
[330688176,1719711057948,-500.0,0.00013917,3]
[330688177,1719711057958,-500.0,0.00013917,3]
[330688178,1719711057967,-500.0,0.00013917,3]
[330688179,1719711057976,-899.57,0.00013917,3]
[330688180,1719711057985,-500.0,0.00013917,3]
[330688181,1719711057996,-4351.69,0.00013917,3]
[330688182,1719711058005,-590.76,0.00013917,3]
[330688183,1719711058014,-500.0,0.00013917,3]
[330688184,1719711058023,-500.0,0.00013917,3]
[330688185,1719711058032,-581.58,0.00013917,3]
[330688186,1719711058042,-500.0,0.00013917,3]
[330688187,1719711058051,-719.02,0.00013917,3]
[330688188,1719711058060,-500.0,0.00013917,3]
[330688189,1719711058069,-500.0,0.00013917,3]
[330688190,1719711058078,-680.73,0.00013917,3]
[330688191,1719711058087,-1466.68,0.00013917,3]
[330688192,1719711058096,-390.23076684,0.00013917,3]
[330688193,1719711058105,-500.0,0.00013917,3]
[330688194,1719711058114,-1052.34,0.00013917,3]
[330688195,1719711058123,-8291.65,0.00013917,3]
[330688196,1719711058132,-500.0,0.00013917,3]
[330688197,1719711058143,-500.0,0.00013917,3]
[330688198,1719711058152,-500.0,0.00013917,3]
[330688199,1719711058162,-500.0,0.00013917,3]
[330688200,1719711058172,-500.0,0.00013917,3]
[330688201,1719711058181,-500.0,0.00013917,3]
[330688202,1719711058190,-857.65,0.00013917,3]
[330688203,1719711058199,-500.0,0.00013917,3]
[330688204,1719711058208,-733.86,0.00013917,3]
[330688205,1719711058217,-2739.13,0.00013917,3]
[330688206,1719711058227,-500.0,0.00013917,3]
[330688207,1719711058235,-500.0,0.00013917,3]
[330688208,1719711058244,-500.0,0.00013917,3]
[330688209,1719711058254,-1160.63,0.00013917,3]
[330688210,1719711058264,-1644.16,0.00013917,3]
[330688211,1719711058273,-709.63,0.00013917,3]
[330688212,1719711058282,-500.0,0.00013917,3]
[330688213,1719711058291,-500.0,0.00013917,3]
[330688214,1719711058301,-500.0,0.00013917,3]
[330688215,1719711058310,-500.0,0.00013917,3]
[330688216,1719711058319,-688.73,0.00013917,3]
[330688217,1719711058328,-500.0,0.00013917,3]
[330688218,1719711058337,-151.0,0.00013917,2]
[330688219,1719711058346,-500.0,0.00013917,3]
[330688220,1719711058355,-151.0,0.00013917,2]
[330688221,1719711058365,-151.0,0.00013917,2]
[330688222,1719711058374,-500.0,0.00013917,3]
[330688223,1719711058383,-515.33,0.00013917,3]
[330688224,1719711058392,-1136.46,0.00013917,3]
[330688225,1719711058401,-952.21,0.00013917,3]
[330688226,1719711058411,-651.27,0.00013917,3]
[330688227,1719711058420,-1657.35,0.00013917,3]
[330688228,1719711058429,-151.0,0.00013917,2]
[330688229,1719711058438,-155.588734,0.00013917,2]
[330688230,1719711058447,-1024.41,0.00013917,3]
[330688231,1719711058456,-500.0,0.00013917,3]
[330688232,1719711058465,-500.0,0.00013917,3]
[330688233,1719711058475,-569.76,0.00013917,3]
[330688234,1719711058483,-666.12,0.00013917,3]
[330688235,1719711058492,-1272.44,0.00013917,3]
[330688236,1719711058501,-500.0,0.00013917,3]
[330688237,1719711058510,-500.0,0.00013917,3]
[330688238,1719711058520,-500.0,0.00013917,3]
[330688239,1719711058529,-990.57,0.00013917,3]